bitfinex/quotes_ETHUSD_20250906
["timestamp","ask_amount","ask_price","bid_price","bid_amount"]
[1757180108056,2.0645,4281.0,4280.9,0.116]
[1757180110488,2.09369878,4281.0,4280.9,0.116]
[1757180111007,2.0645,4281.0,4280.9,0.116]
[1757180111435,1.73630868,4281.0,4280.6,0.70244204]
[1757180111574,0.23783898,4281.1,4281.0,2.33590282]
[1757180111769,0.23783898,4281.1,4281.0,6.54130282]
[1757180113087,0.23783898,4281.1,4281.0,7.03190282]
[1757180113395,0.23783898,4281.1,4281.0,11.47418884]
[1757180113595,0.001,4281.5,4281.4,2.33568458]
[1757180113892,0.001,4281.5,4281.4,9.37568458]
[1757180114097,0.001,4281.5,4281.4,9.66108458]
[1757180114275,0.001,4281.5,4281.4,10.11008458]
[1757180114472,0.001,4281.5,4281.4,11.53486897]
[1757180114699,0.001,4282.0,4281.5,3.0]
[1757180114915,0.001,4282.0,4281.8,2.33546639]
[1757180115062,0.001,4282.0,4281.8,9.67382279]
[1757180115262,0.001,4282.0,4281.8,10.19106639]
[1757180115464,1e-08,4282.3,4282.2,2.33524823]
[1757180115678,1e-08,4282.3,4282.2,9.27219917]
[1757180115877,1e-08,4282.3,4282.2,9.66164823]
[1757180116100,1e-08,4282.3,4282.2,10.11064823]
[1757180117906,1e-08,4282.3,4282.2,10.27744449]
[1757180118075,1e-08,4282.3,4282.2,10.57339206]
[1757180118805,0.026,4282.8,4282.7,2.33497559]
[1757180118806,1e-08,4282.8,4282.7,2.33497559]
[1757180119107,1e-08,4282.8,4282.7,11.18191972]
[1757180119408,1e-08,4282.8,4282.7,11.90437559]
[1757180120025,1e-08,4282.8,4282.7,11.45537559]
[1757180120307,1e-08,4282.8,4282.7,12.44866161]
[1757180120603,1e-08,4282.8,4282.7,12.89766161]
[1757180121416,1e-08,4282.8,4282.7,12.44766161]
[1757180121793,1e-08,4282.8,4282.7,8.52566161]
[1757180121998,1e-08,4282.8,4282.7,12.89866161]
[1757180122638,1e-08,4282.8,4282.7,12.85586161]
[1757180123725,1e-08,4283.8,4283.7,2.33443051]
[1757180123930,1e-08,4283.8,4283.7,8.05343051]
[1757180124095,1e-08,4283.8,4283.7,11.33883051]
[1757180124277,1e-08,4283.8,4283.7,11.43239918]
[1757180125217,1e-08,4283.8,4283.7,11.88139918]
[1757180125424,1e-08,4283.8,4283.7,13.30298975]
[1757180125991,1e-08,4283.8,4283.7,12.85398975]
[1757180127491,1e-08,4283.8,4283.7,12.85398975]
[1757180129299,1e-08,4283.8,4283.7,13.30298975]
[1757180129688,1e-08,4283.8,4283.7,13.36638975]
[1757180129989,1e-08,4284.4,4283.9,2.33432152]
[1757180130217,0.94510001,4284.4,4284.3,2.33410358]
[1757180130416,1e-08,4284.4,4284.3,6.25810358]
[1757180130586,0.31550001,4284.4,4284.3,6.25810358]
[1757180130923,1.26060001,4284.4,4284.3,6.25810358]
[1757180131421,0.48960001,4284.4,4284.3,6.25810358]
[1757180131622,0.48960001,4284.4,4284.3,7.12669101]
[1757180132500,1e-08,4284.4,4284.3,7.12669101]
[1757180132702,0.001,4284.8,4284.7,2.33388568]
[1757180133029,0.001,4284.8,4284.7,6.25788568]
[1757180133230,0.001,4284.8,4284.7,6.65928568]
[1757180133386,0.001,4284.8,4284.7,7.78301048]
[1757180133591,0.001,4284.8,4284.7,10.78301048]
[1757180133905,0.026,4285.8,4285.4,2.33350445]
[1757180134112,0.4555,4285.7,4285.4,8.05350445]
[1757180134306,0.8061,4285.5,4285.4,8.05350445]
[1757180134626,1.2616,4285.5,4285.4,9.101213]
[1757180134796,1.2616,4285.5,4285.4,9.616813]
[1757180135391,0.8061,4285.5,4285.4,9.616813]
[1757180135597,0.001,4285.5,4285.4,9.902213]
[1757180135797,0.4555,4286.1,4285.4,9.902213]
[1757180136051,0.4555,4286.1,4286.0,2.33317778]
[1757180136326,0.001,4286.3,4286.2,2.33306891]
[1757180136535,0.001,4286.3,4286.2,6.28196537]
[1757180136843,0.68049758,4286.7,4286.6,2.33285121]
[1757180136844,0.22499758,4286.7,4286.6,2.33285121]
[1757180137160,0.68049758,4286.7,4286.6,6.26985121]
[1757180137430,1e-08,4286.7,4286.6,6.26985121]
[1757180137623,0.025,4287.8,4286.7,2.33279679]
[1757180138133,0.3405,4286.8,4286.7,6.26979679]
[1757180138635,0.8301,4286.8,4286.7,6.26979679]
[1757180138931,0.8301,4286.8,4286.7,6.97116317]
[1757180139635,1.2856,4286.8,4286.7,6.97116317]
[1757180141255,1.2856,4286.8,4286.7,6.96916317]
[1757180142498,0.8301,4286.8,4286.7,0.70136638]
[1757180142745,1.40466,4286.8,4286.7,0.70136638]
[1757180143040,1.2761,4286.8,4286.7,2.33279679]
[1757180144017,0.8301,4286.8,4286.7,2.44879679]
[1757180144302,0.3405,4286.8,4286.7,3.15016316]
[1757180144522,0.025,4286.8,4286.7,3.15016316]
[1757180146118,0.3173,4286.8,4286.7,3.15016316]
[1757180146336,1.2914,4286.8,4286.7,3.15016316]
[1757180146639,1.2914,4286.8,4286.7,6.38179679]
[1757180148217,1.2914,4286.8,4286.7,4.049]
[1757180148545,1.2914,4286.8,4286.7,2.44879679]
[1757180149362,1.2914,4286.8,4286.7,0.116]
[1757180149652,1.2914,4286.8,4286.7,2.44879679]
[1757180151636,0.8454,4286.8,4286.7,2.44879679]
[1757180151839,1.6374,4286.8,4286.7,0.116]
[1757180152039,0.792,4286.7,4286.6,0.004]
[1757180152240,1.45514,4286.8,4286.6,0.004]
[1757180152241,0.3173,4286.8,4286.7,2.44879679]
[1757180152444,0.026,4286.8,4286.7,2.44879679]
[1757180152738,0.3183,4286.8,4286.7,2.44879679]
[1757180152942,0.026,4286.8,4286.7,6.67329679]
[1757180153145,0.026,4286.8,4286.7,6.38179679]
[1757180153443,0.3183,4286.8,4286.7,6.38179679]
[1757180153970,0.8464,4286.8,4286.7,6.38179679]
[1757180157252,0.026,4286.8,4286.7,6.38179679]
[1757180157946,0.026,4286.8,4286.7,6.67329679]
[1757180158143,0.3183,4286.8,4286.7,6.38179679]
[1757180158341,0.026,4286.8,4286.7,6.38179679]
[1757180158863,1.2924,4286.8,4286.7,2.44879679]
[1757180159065,2.21364,4286.8,4286.7,2.44879679]
[1757180159767,0.026,4286.8,4286.7,2.44879679]
[1757180159976,0.8464,4286.8,4286.7,2.44879679]
[1757180160264,1.2924,4286.8,4286.7,2.44879679]
[1757180161161,0.8464,4286.8,4286.7,2.44879679]
[1757180164426,0.026,4286.8,4286.7,2.44879679]
[1757180164877,0.026,4286.8,4286.7,3.20409679]
[1757180165357,0.026,4286.8,4286.7,3.90547464]
[1757180165559,0.026,4286.8,4286.7,4.92281214]
[1757180165769,0.026,4286.8,4286.7,5.45151214]
[1757180166464,0.001,4287.3,4287.2,2.33252472]
[1757180166667,0.001,4287.3,4287.2,6.26252472]
[1757180166837,0.001,4287.3,4287.2,6.67002472]
[1757180167041,0.001,4287.3,4287.2,8.74218718]
[1757180167256,0.001,4287.3,4287.2,8.83568455]
[1757180167641,0.001,4287.3,4287.2,4.78968455]
[1757180167944,0.001,4287.3,4287.2,8.19498455]
[1757180168241,0.001,4287.3,4287.2,8.72368455]
[1757180168458,0.001,4287.3,4287.2,11.72368455]
[1757180170087,1e-08,4287.8,4287.7,2.33225272]
[1757180170267,1e-08,4287.8,4287.7,11.93705665]
[1757180170469,1e-08,4287.8,4287.7,16.21325665]
[1757180171030,1e-08,4287.8,4287.7,16.73725665]
[1757180171439,1e-08,4287.8,4287.7,12.28725665]
[1757180171651,1e-08,4287.8,4287.7,10.78267799]
[1757180172270,0.31440001,4287.8,4287.7,3.08947799]
[1757180172479,0.83840001,4287.8,4287.7,6.79025272]
[1757180172646,1.27620001,4287.8,4287.7,0.524]
[1757180172836,2.06820001,4287.8,4287.7,0.524]
[1757180173170,0.792,4287.7,4287.1,6.26952753]
[1757180173474,0.792,4287.6,4287.4,2.33240172]
[1757180173675,2.0682,4287.5,4287.4,2.33240172]
[1757180173892,2.0682,4287.5,4287.3,2.33245793]
[1757180174094,0.9618,4287.4,4287.3,2.33245793]
[1757180174706,1.2762,4287.4,4287.3,2.33245793]
[1757180175502,0.792,4287.3,4286.6,0.004]
[1757180175658,1.02797587,4287.3,4286.8,2.33271952]
[1757180175856,0.3144,4286.9,4286.7,4.6384041]
[1757180176167,0.524,4286.8,4286.7,3.03420089]
[1757180176493,0.8384,4286.8,4286.7,3.03420089]
[1757180176650,0.8384,4286.8,4286.7,2.33279679]
[1757180177381,0.8384,4286.8,4286.7,6.26979679]
[1757180177596,0.8384,4286.8,4286.7,6.38579679]
[1757180178220,1.6304,4286.8,4286.7,0.116]
[1757180178503,0.792,4286.7,4286.6,0.004]
[1757180178906,2.0682,4286.7,4286.6,2.33685121]
[1757180179119,2.0682,4286.7,4286.6,0.004]
[1757180179460,4.40099679,4286.7,4286.6,0.004]
[1757180179661,7.54615674,4286.7,4286.6,0.004]
[1757180179892,8.89848134,4286.7,4286.6,0.004]
[1757180180761,6.56568455,4286.7,4286.6,0.004]
[1757180181156,8.89848134,4286.7,4286.6,0.004]
[1757180183480,7.8924,4286.7,4286.6,0.004]
[1757180183680,4.7764,4286.7,4286.6,0.004]
[1757180184084,5.5684,4286.7,4286.6,0.004]
[1757180184754,11.33899679,4286.7,4286.6,0.004]
[1757180190298,18.36899679,4286.7,4286.6,0.004]
[1757180190465,20.44852477,4286.7,4286.6,0.004]
[1757180191904,20.81451066,4286.7,4286.6,0.004]
[1757180192763,21.13006244,4286.7,4286.6,0.004]
[1757180193199,20.44852477,4286.7,4286.6,0.004]
[1757180195482,20.81452213,4286.7,4286.6,0.004]
[1757180200782,20.80452213,4286.7,4286.6,0.004]
[1757180202012,21.12007391,4286.7,4286.6,0.004]
[1757180202519,2.33290563,4286.5,4284.8,0.025]
[1757180202818,3.792,4285.9,4284.9,0.4421]
[1757180202988,17.40569762,4285.9,4284.9,0.4421]
[1757180203320,18.33773222,4285.9,4284.9,0.4421]
[1757180203529,18.24957576,4285.9,4285.1,0.4421]
[1757180203824,18.24957576,4285.9,4284.8,0.025]
[1757180203825,21.12302289,4285.9,4284.8,0.025]
[1757180203989,19.98722757,4285.9,4285.4,0.4421]
[1757180204213,20.10250652,4285.9,4285.4,0.4421]
[1757180204839,20.10250652,4285.9,4285.7,0.004]
[1757180205814,20.55670652,4285.9,4285.7,0.004]
[1757180206002,20.8722583,4285.9,4285.7,0.004]
[1757180207797,21.23831241,4285.9,4285.7,0.004]
[1757180208002,3.12632152,4283.9,4283.8,0.025]
[1757180208309,12.1858733,4283.9,4283.8,0.025]
[1757180208618,11.87032152,4283.9,4283.8,0.7657]
[1757180212249,7.92132152,4283.9,4283.8,0.7657]
[1757180212450,9.534,4283.9,4283.8,1.2441]
[1757180212960,11.86832152,4283.9,4283.8,1.2441]
[1757180213268,11.86832152,4283.9,4283.8,0.7657]
[1757180215288,11.86832152,4283.9,4283.8,0.3236]
[1757180215443,13.28857495,4283.9,4283.8,0.3236]
[1757180215771,11.86832152,4283.9,4283.8,0.7657]
[1757180217485,9.534,4283.9,4283.8,1.2441]
[1757180217637,11.86832152,4283.9,4283.8,1.2441]
[1757180217967,11.86832152,4283.9,4283.8,0.7657]
[1757180217968,11.81832152,4283.9,4283.8,0.7657]
[1757180218536,11.81832152,4283.9,4283.8,0.3236]
[1757180220177,11.81832152,4283.9,4283.8,0.7657]
[1757180220678,9.484,4283.9,4283.8,0.7657]
[1757180220871,11.81832152,4283.9,4283.8,0.7657]
[1757180222079,11.81832152,4283.9,4283.8,0.7697]
[1757180222741,12.61362152,4283.9,4283.8,0.029]
[1757180222941,14.73169226,4283.9,4283.8,0.029]
[1757180223179,13.93639226,4283.9,4283.8,0.029]
[1757180223380,13.93639226,4283.9,4283.8,0.3276]
[1757180223878,11.81832152,4283.9,4283.8,0.3276]
[1757180224188,11.81232152,4283.9,4283.8,0.7697]
[1757180225590,9.478,4283.9,4283.8,0.7697]
[1757180225791,11.81232152,4283.9,4283.8,0.7697]
[1757180227386,9.478,4283.9,4283.8,0.7697]
[1757180227793,11.81232152,4283.9,4283.8,0.7697]
[1757180228098,9.478,4283.9,4283.8,0.7697]
[1757180229199,11.81232152,4283.9,4283.8,0.7697]
[1757180229566,9.478,4283.9,4283.8,0.7697]
[1757180232697,5.537,4283.9,4283.8,0.7697]
[1757180232897,8.942,4284.6,4283.8,1.3582]
[1757180233192,3.937,4284.5,4284.2,2.33415379]
[1757180233399,3.937,4284.5,4284.3,0.9388]
[1757180233553,0.792,4284.4,4284.3,3.27289714]
[1757180233760,3.937,4284.5,4284.4,0.7795]
[1757180233993,7.729,4284.5,4284.4,0.7795]
[1757180234976,7.729,4284.5,4284.4,1.252]
[1757180235179,7.729,4284.5,4284.4,0.7795]
[1757180236913,7.729,4284.5,4284.4,0.8955]
[1757180239719,4.729,4284.5,4284.4,3.7020491]
[1757180240224,3.937,4284.5,4284.4,3.7020491]
[1757180241725,0.792,4285.0,4284.7,2.33384718]
[1757180242020,3.116,4285.1,4284.5,2.80029398]
[1757180242021,0.792,4284.8,4284.5,2.80029398]
[1757180242228,4.725,4284.7,4284.6,2.80024015]
[1757180242524,4.725,4284.7,4284.6,3.11344015]
[1757180243097,0.001,4285.0,4284.9,2.33377675]
[1757180243291,4.726,4285.0,4284.9,2.33377675]
[1757180243485,4.726,4285.0,4284.9,3.11327675]
[1757180245024,4.726,4285.0,4284.9,0.7795]
[1757180246636,0.792,4284.9,4284.6,0.5823]
[1757180246794,3.932,4284.8,4284.6,0.5823]
[1757180247924,3.932,4284.8,4284.6,2.91619828]
[1757180248226,4.724,4284.8,4284.7,0.3132]
[1757180249350,0.792,4284.7,4284.6,0.116]
[1757180249727,0.792,4284.7,4284.6,0.4292]
[1757180250753,1.5804,4284.7,4284.6,0.116]
[1757180251056,2.05437357,4284.7,4283.9,2.33430587]
[1757180251214,0.792,4284.5,4284.2,0.116]
[1757180251414,0.792,4284.3,4284.2,0.116]
[1757180251655,1.1028,4284.3,4284.2,0.116]
[1757180251860,0.792,4284.1,4283.8,0.029]
[1757180252012,0.792,4283.9,4283.8,0.029]
[1757180252217,7.36712152,4283.9,4283.8,0.029]
[1757180252467,8.28952152,4283.9,4283.8,0.029]
[1757180253958,5.9552,4283.9,4283.8,0.029]
[1757180254133,10.84472152,4283.9,4283.8,0.029]
[1757180254332,12.96274944,4283.9,4283.8,0.029]
[1757180254654,12.51794944,4283.9,4283.8,0.029]
[1757180255220,8.5104,4283.9,4283.8,0.029]
[1757180255424,8.0328,4283.9,4283.8,0.029]
[1757180256453,7.722,4283.9,4283.8,0.029]
[1757180257020,8.0328,4283.9,4283.8,0.029]
[1757180257256,8.5104,4283.9,4283.8,0.029]
[1757180258021,10.84472152,4283.9,4283.8,0.029]
[1757180258767,8.5104,4283.9,4283.8,0.029]
[1757180260339,8.1996,4283.9,4283.8,0.029]
[1757180260519,7.722,4283.9,4283.8,0.029]
[1757180261739,7.722,4283.9,4283.8,0.77]
[1757180262471,3.0,4283.9,4283.8,0.77]
[1757180262770,6.925,4283.9,4283.8,0.77]
[1757180263172,7.717,4283.9,4283.8,0.77]
[1757180263957,7.717,4283.9,4283.8,0.3415]
[1757180264135,8.5035,4283.9,4283.8,0.029]
[1757180264575,7.717,4283.9,4283.8,0.029]
[1757180266762,7.85450362,4283.9,4283.8,0.029]
[1757180270494,8.64200362,4283.9,4283.8,0.029]
[1757180271115,0.13750362,4283.9,4283.8,3.59267602]
[1757180271251,0.13750362,4283.9,4283.8,4.72966214]
[1757180271451,0.13750362,4283.9,4283.8,4.24136214]
[1757180271648,0.13750362,4283.9,4283.8,2.67587602]
[1757180271863,5.65100362,4283.9,4283.8,0.029]
[1757180272294,4.86450362,4283.9,4283.8,3.10437602]
[1757180272809,1e-08,4283.9,4283.8,3.59267602]
[1757180273045,1e-08,4283.9,4283.8,3.8765916]
[1757180276007,0.00100001,4283.9,4283.8,4.3648916]
[1757180276373,0.00100001,4283.9,4283.8,3.8765916]
[1757180281053,0.00100001,4283.9,4283.8,3.9925916]
[1757180281247,0.29740001,4283.9,4283.8,2.47937602]
[1757180281404,0.00100001,4283.9,4283.8,3.22037602]
[1757180284350,0.00100001,4283.9,4283.8,7.67867602]
[1757180284551,0.00100001,4283.9,4283.8,3.10437602]
[1757180284754,0.00100001,4283.9,4283.8,7.6352616]
[1757180284954,0.00100001,4283.9,4283.8,3.6482616]
[1757180285528,0.00100001,4283.9,4283.8,2.9072616]
[1757180285740,0.00100001,4283.9,4283.8,2.36337602]
[1757180286267,0.00100001,4283.9,4283.8,2.67587602]
[1757180287065,0.00100001,4283.9,4283.8,3.10437602]
[1757180289075,0.00100001,4283.9,4283.8,2.36337602]
[1757180290431,0.76990001,4283.9,4283.8,2.36337602]
[1757180290668,1.23170001,4283.9,4283.8,0.029]
[1757180291190,0.76990001,4283.9,4283.8,0.029]
[1757180291810,0.76990001,4283.9,4283.8,2.36337602]
[1757180294497,0.76990001,4283.9,4283.8,2.47937602]
[1757180296276,0.00100001,4283.9,4283.8,2.79497602]
[1757180297000,0.00100001,4283.9,4283.8,3.25247602]
[1757180297507,0.00100001,4283.9,4283.8,3.81117149]
[1757180298607,0.00100001,4283.9,4283.8,3.25247602]
[1757180300070,0.00100001,4283.9,4283.8,3.73987602]
[1757180300699,0.00100001,4283.9,4283.8,3.25247602]
[1757180308158,0.00100001,4283.9,4283.8,6.73987602]
[1757180308302,0.00100001,4283.9,4283.8,3.73987602]
[1757180308499,0.00100001,4283.9,4283.8,4.74481149]
[1757180308940,0.00100001,4283.9,4283.8,7.74481149]
[1757180313952,0.00100001,4283.9,4283.8,4.74481149]
[1757180317364,0.00100001,4283.9,4283.8,7.74481149]
[1757180318445,0.00100001,4283.9,4283.8,7.25741149]
[1757180319340,0.00100001,4283.9,4283.8,11.70381149]
[1757180319742,0.00100001,4283.9,4283.8,11.21641149]
[1757180323405,0.00100001,4283.9,4283.8,11.21141149]
[1757180323709,0.00100001,4283.9,4283.8,11.68741149]
[1757180325497,0.00100001,4283.9,4283.8,11.21141149]
[1757180326378,1e-08,4284.4,4284.3,2.33410358]
[1757180326595,1e-08,4284.4,4284.3,6.76585386]
[1757180326794,1e-08,4284.4,4284.3,7.62353153]
[1757180328467,1e-08,4284.4,4284.3,10.62353153]
[1757180333401,1e-08,4284.4,4284.3,11.09953153]
[1757180333602,1e-08,4284.4,4284.3,10.62353153]
[1757180334472,1e-08,4284.4,4284.3,11.09953153]
[1757180335533,0.78510001,4284.4,4284.3,5.91693153]
[1757180335822,0.78510001,4284.4,4284.3,9.86493153]
[1757180336181,0.49040001,4284.4,4284.3,9.86493153]
[1757180337881,0.78680001,4284.4,4284.3,9.86493153]
[1757180338495,0.49040001,4284.4,4284.3,9.86493153]
[1757180340631,0.001,4284.5,4284.4,5.3340491]
[1757180340921,0.001,4284.5,4284.4,7.0967204]
[1757180342121,0.001,4284.5,4284.4,7.5690204]
[1757180350026,1.2342,4284.5,4284.4,2.8063491]
[1757180350227,1.2342,4284.5,4284.4,6.7453491]
[1757180353097,1.2342,4284.5,4284.4,6.7443491]
[1757180353500,1.2342,4284.5,4284.4,2.8063491]
[1757180353796,1.2342,4284.5,4284.4,6.7433491]
[1757180354816,0.7852,4284.5,4284.4,6.7433491]
[1757180357277,1.2342,4284.5,4284.4,2.3340491]
[1757180357477,1.2342,4284.5,4284.4,6.2690491]
[1757180359950,0.792,4284.4,4284.3,2.45008529]
[1757180360158,2.0359,4284.4,4284.3,2.45008529]
[1757180360390,2.0359,4284.4,4284.3,0.116]
[1757180360966,2.0359,4284.4,4284.3,2.45010358]
[1757180362954,2.0359,4284.4,4284.3,2.45410358]
[1757180364217,2.0359,4284.4,4284.3,0.12]
[1757180364218,2.251942,4284.4,4284.3,0.12]
[1757180364413,13.05907292,4284.4,4284.3,0.004]
[1757180364570,13.02989731,4284.4,4284.3,0.004]
[1757180367094,16.96289731,4284.4,4284.3,0.004]
[1757180370130,23.99289731,4284.4,4284.3,0.004]
[1757180370316,3.12626704,4284.0,4283.8,0.029]
[1757180370518,3.12648501,4283.6,4283.5,0.004]
[1757180370834,12.19866573,4283.6,4283.5,0.004]
[1757180371015,11.87579122,4283.6,4283.5,0.004]
[1757180371223,12.81429122,4283.6,4283.5,0.004]
[1757180371409,14.59279996,4283.6,4283.5,0.004]
[1757180372244,3.12659401,4283.4,4283.3,1e-08]
[1757180372406,3.12681204,4283.0,4282.9,0.004]
[1757180372589,14.9738654,4283.0,4282.9,0.004]
[1757180372794,15.88318025,4283.0,4282.9,0.004]
[1757180373721,15.99791948,4283.0,4282.9,0.004]
[1757180374739,15.60622226,4283.0,4282.9,0.004]
[1757180374941,16.05522226,4283.0,4282.9,0.004]
[1757180377827,23.08522226,4283.0,4282.9,0.004]
[1757180380029,23.08522226,4283.0,4282.9,0.004]
[1757180387952,22.63622226,4283.0,4282.9,0.004]
[1757180389059,26.07672226,4283.0,4282.9,0.004]
[1757180389960,25.58622226,4283.0,4282.9,0.004]
[1757180390370,26.02672226,4283.0,4282.9,0.004]
[1757180393321,26.12036585,4283.0,4282.9,0.004]
[1757180396025,25.67986585,4283.0,4282.9,0.004]
[1757180396228,26.12036585,4283.0,4282.9,0.004]
[1757180396426,6.24286656,4282.9,4282.4,0.004]
[1757180396629,6.12708464,4282.5,4282.4,0.004]
[1757180396869,3.12730277,4282.1,4282.0,0.004]
[1757180397032,3.12741184,4281.9,4280.9,0.4766]
[1757180397235,3.12741184,4281.9,4279.8,0.025]
[1757180397236,12.17421322,4281.9,4281.8,1e-08]
[1757180397434,13.33391403,4281.9,4281.8,1e-08]
[1757180397737,13.21616746,4281.9,4281.8,1e-08]
[1757180398238,13.21616746,4281.9,4280.0,0.4766]
[1757180398239,6.12795739,4280.9,4280.0,0.4766]
[1757180398598,11.86295739,4280.9,4280.2,0.4349]
[1757180398739,12.50561939,4280.9,4280.2,0.4349]
[1757180398934,12.96031939,4280.9,4280.2,0.4349]
[1757180399736,3.12828483,4280.3,4280.2,0.4349]
[1757180399938,10.09648839,4280.3,4280.2,0.4349]
[1757180400161,10.06728483,4280.3,4280.2,0.59123559]
[1757180400546,10.06728483,4280.3,4280.2,1.06783559]
[1757180400737,10.22978689,4280.3,4280.2,1.06783559]
[1757180401337,10.22978689,4280.3,4279.8,0.025]
[1757180401338,6.12844859,4280.0,4279.8,0.025]
[1757180401537,17.33561567,4279.9,4279.8,0.025]
[1757180401780,17.77543294,4279.9,4279.8,0.025]
[1757180402151,12.33152673,4279.9,4279.8,0.025]
[1757180402352,17.77543294,4279.9,4279.8,0.025]
[1757180402571,18.24235086,4279.9,4279.8,0.025]
[1757180402959,19.13755086,4279.9,4279.8,0.025]
[1757180403391,3.12904924,4278.9,4278.8,0.029]
[1757180403599,11.84626235,4278.9,4278.8,0.029]
[1757180403817,11.81704924,4278.9,4278.8,0.7703]
[1757180403952,11.81704924,4278.9,4278.8,0.3354]
[1757180404159,13.89865798,4278.9,4278.8,0.029]
[1757180404359,14.35335798,4278.9,4278.8,0.029]
[1757180404661,13.89865798,4278.9,4278.8,0.029]
[1757180404962,14.79385798,4278.9,4278.8,0.029]
[1757180405603,3.0,4278.8,4278.1,0.004]
[1757180405757,0.792,4278.1,4276.4,0.9115]
[1757180405960,11.87660175,4277.9,4276.8,0.4599]
[1757180406269,0.792,4277.7,4276.8,0.025]
[1757180406601,11.57404832,4276.9,4276.8,0.025]
[1757180406799,5.589,4276.9,4276.8,0.025]
[1757180407002,0.15042271,4276.9,4276.8,1.2429]
[1757180407157,0.15042271,4276.9,4276.8,1.36719]
[1757180407506,0.1168,4277.3,4276.8,1.36719]
[1757180407507,3.948,4277.3,4276.8,1.36719]
[1757180407656,3.948,4277.3,4277.2,2.33797811]
[1757180407857,3.948,4277.3,4277.2,0.33815859]
[1757180408099,0.792,4277.2,4276.8,0.025]
[1757180408295,1.797,4277.1,4276.9,0.4349]
[1757180408497,0.4547,4278.4,4276.9,0.4349]
[1757180408498,3.954,4277.4,4276.9,0.4349]
[1757180408695,3.954,4277.3,4277.1,2.33803082]
[1757180408857,1.797,4278.4,4277.2,0.7413]
[1757180409061,3.0,4278.2,4277.3,0.4349]
[1757180409260,3.0,4278.2,4278.1,0.3064]
[1757180409699,0.792,4278.1,4277.5,0.4349]
[1757180409885,3.0,4277.9,4277.5,0.4349]
[1757180410084,0.792,4278.2,4277.8,0.2928]
[1757180410260,3.958,4278.1,4277.9,0.9449]
[1757180410461,1.797,4278.4,4276.8,2.36316417]
[1757180410462,1.797,4278.4,4278.3,2.33737699]
[1757180410663,0.025,4278.8,4278.5,2.33726773]
[1757180410861,3.958,4278.6,4278.5,3.57496773]
[1757180411297,3.958,4278.6,4278.5,0.2928]
[1757180411606,3.958,4278.6,4278.5,2.63006773]
[1757180411818,3.958,4278.6,4278.5,0.7577]
[1757180412024,3.958,4278.6,4278.0,0.48]
[1757180412025,7.3563,4278.6,4278.0,0.9449]
[1757180412167,0.82121584,4278.5,4278.0,0.9449]
[1757180412369,0.82121584,4278.5,4278.1,2.33748253]
[1757180412569,0.792,4278.5,4278.4,0.2928]
[1757180413282,3.958,4278.6,4278.5,2.33726773]
[1757180413501,3.958,4278.6,4278.5,3.57496773]
[1757180414819,0.025,4278.8,4278.7,2.33715848]
[1757180415218,0.025,4278.8,4278.7,3.57485848]
[1757180415633,0.025,4278.8,4278.7,4.1660711]
[1757180416679,0.025,4278.8,4278.7,3.57485848]
[1757180416916,0.025,4278.8,4278.7,1.2377]
[1757180417520,0.025,4278.8,4278.7,0.8745]
[1757180418723,5.78230621,4278.8,4278.7,0.1168]
[1757180418922,0.9088,4278.7,4278.0,0.81959913]
[1757180419241,0.1168,4278.4,4277.8,0.48]
[1757180419537,3.964,4278.3,4277.8,0.48]
[1757180419981,3.964,4278.3,4277.9,0.4649]
[1757180420422,4.37500158,4278.3,4277.7,0.1168]
[1757180420628,4.37500158,4278.3,4276.8,1.823]
[1757180420629,10.50441251,4278.3,4278.2,0.004]
[1757180420835,11.73661251,4278.3,4278.2,0.004]
[1757180421926,11.85341251,4278.3,4278.2,0.004]
[1757180423312,10.93461251,4278.3,4278.2,0.004]
[1757180424847,11.85341251,4278.3,4278.2,0.004]
[1757180428755,3.792,4278.2,4277.8,0.004]
[1757180428955,8.26565681,4278.1,4277.8,0.004]
[1757180429170,3.971,4278.0,4277.9,0.4649]
[1757180429447,6.971,4278.0,4277.9,0.4649]
[1757180429670,9.3085409,4278.0,4277.9,0.4649]
[1757180429891,6.971,4278.0,4277.9,0.7577]
[1757180430154,9.3085409,4278.0,4277.9,0.7577]
[1757180430362,6.971,4278.0,4277.9,0.2928]
[1757180430515,3.0,4278.0,4277.9,1.2377]
[1757180430719,6.973,4278.0,4277.9,1.2377]
[1757180431159,3.0,4278.0,4277.9,0.7577]
[1757180431330,3.973,4278.0,4277.9,1.2377]
[1757180433158,3.973,4278.0,4277.9,0.7577]
[1757180433928,3.973,4278.0,4277.9,0.2928]
[1757180434463,3.973,4278.0,4277.9,0.7577]
[1757180435427,3.973,4278.0,4277.9,0.2928]
[1757180436726,3.973,4278.0,4277.9,0.7577]
[1757180438275,5.76686586,4278.6,4277.9,0.7577]
[1757180438276,1.823,4278.8,4277.9,1.2377]
[1757180438473,3.0,4278.6,4278.1,2.33745406]
[1757180438686,3.968,4278.5,4278.2,2.80231776]
[1757180438859,1.9398,4278.8,4278.3,0.9449]
[1757180439173,0.025,4278.8,4278.7,2.45395848]
[1757180439478,0.025,4278.8,4278.7,3.69165848]
[1757180439479,3.994,4278.8,4278.7,3.69165848]
[1757180439778,0.026,4278.8,4278.7,3.69165848]
[1757180445383,0.026,4278.8,4278.7,4.29455086]
[1757180446386,0.026,4278.8,4278.7,3.69165848]
[1757180448696,0.001,4279.3,4279.2,2.33688539]
[1757180448893,0.001,4279.3,4279.2,6.29888539]
[1757180449072,0.001,4279.3,4279.2,6.71458539]
[1757180449246,0.001,4279.3,4279.2,7.59428539]
[1757180449454,0.001,4279.3,4279.2,4.62540979]
[1757180449673,0.001,4279.3,4279.2,8.58740979]
[1757180455380,0.001,4279.3,4279.2,10.38440979]